[Event "CCT Chessable Masters Play-In 2025"]
[Site "Online"]
[Date "2025.02.17"]
[Round "4.41"]
[White "Suleymanli, Aydin"]
[Black "Theodorou, Nikolas"]
[Result "0-1"]
[ECO "E12"]
[WhiteElo "2623"]
[BlackElo "2611"]
[PlyCount "114"]
[EventDate "2025.02.13"]
[EventType "swiss"]
[EventCountry "NET"]
[TimeControl "600"]
[WhiteClock "0:00:03"]
[BlackClock "0:00:08"]

1. d4 {[%emt 0:00:03]} e6 {[%emt 0:00:01]} 2. c4 {[%emt 0:00:03]} b6 {[%emt 0:00:01]} 3. Nc3 {[%emt 0:00:02]} Bb7 {[%emt 0:00:01]} 4. a3 {[%emt 0:00:01]} Nf6 {[%emt 0:00:06]} 5. Nf3 {[%emt 0:00:04]} g6 {[%emt 0:00:06]} 6. Qc2 {[%emt 0:00:04]} c5 {[%emt 0:00:01]} 7. d5 {[%emt 0:00:36]} exd5 {[%emt 0:00:01]} 8. cxd5 {[%emt 0:00:01]} Nxd5 {[%emt 0:00:00]} 9. e4 {[%emt 0:00:05]} Nc7 {[%emt 0:00:36]} 10. Bg5 {[%emt 0:00:16]} f6 {[%emt 0:00:14]} 11. Bf4 {[%emt 0:00:09]} Ne6 {[%emt 0:00:02]} 12. Be3 {[%emt 0:00:11]} Nc6 {[%emt 0:00:01]} 13. O-O-O {[%emt 0:00:02]} Qe7 {[%emt 0:00:45]} 14. Nd5 {[%emt 0:01:19]} Qf7 {[%emt 0:00:02]} 15. Bc4 {[%emt 0:00:01]} O-O-O {[%emt 0:00:01]} 16. Rhe1 {[%emt 0:00:16]} Kb8 {[%emt 0:00:04]} 17. Nf4 {[%emt 0:00:42]} Bh6 {[%emt 0:00:19]} 18. g3 {[%emt 0:00:22]} Ne5 {[%emt 0:00:21]} 19. Nxe5 {[%emt 0:00:37]} fxe5 {[%emt 0:00:00]} 20. Ne2 {[%emt 0:00:05]} Bxe3+ {[%emt 0:01:12]} 21. fxe3 {[%emt 0:00:03]} Qf2 {[%emt 0:00:01]} 22. Qc3 {[%emt 0:00:16]} Rhe8 {[%emt 0:00:17]} 23. Bd5 {[%emt 0:00:19]} Nc7 {[%emt 0:00:12]} 24. Bxb7 {[%emt 0:00:13]} Kxb7 {[%emt 0:00:00]} 25. Qc4 {[%emt 0:00:29]} Qxe3+ {[%emt 0:00:43]} 26. Kb1 {[%emt 0:00:02]} b5 {[%emt 0:00:46]} 27. Qc2 {[%emt 0:00:10]} c4 {[%emt 0:00:01]} 28. Nc3 {[%emt 0:00:29]} Qc5 {[%emt 0:00:01]} 29. Nd5 {[%emt 0:00:06]} Ne6 {[%emt 0:00:01]} 30. Qd2 {[%emt 0:00:22]} Nd4 {[%emt 0:00:06]} 31. Qh6 {[%emt 0:00:03]} a5 {[%emt 0:00:33]} 32. Qxh7 {[%emt 0:00:18]} b4 {[%emt 0:00:01]} 33. Qxg6 {[%emt 0:00:01]} c3 {[%emt 0:00:16]} 34. Rd3 {[%emt 0:00:31]} Re6 {[%emt 0:00:15]} 35. Qg5 {[%emt 0:00:11]} Rc8 {[%emt 0:00:34]} 36. bxc3 {[%emt 0:00:11]} Qc4 {[%emt 0:00:02]} 37. Qd2 {[%emt 0:00:11]} Nb3 {[%emt 0:00:38]} 38. Qc2 {[%emt 0:00:02]} Nc5 {[%emt 0:00:04]} 39. Rdd1 {[%emt 0:00:07]} bxa3 {[%emt 0:00:08]} 40. Ne3 {[%emt 0:00:16]} Qb5+ {[%emt 0:00:16]} 41. Ka1 {[%emt 0:00:01]} a4 {[%emt 0:00:00]} 42. Rd5 {[%emt 0:00:04]} Rb6 {[%emt 0:00:04]} 43. Rb1 {[%emt 0:00:08]} Nb3+ {[%emt 0:00:09]} 44. Ka2 {[%emt 0:00:01]} Qc6 {[%emt 0:00:00]} 45. c4 {[%emt 0:00:01]} Ka7 {[%emt 0:00:18]} 46. Qc3 {[%emt 0:00:02]} Rcb8 {[%emt 0:00:02]} 47. Kxa3 {[%emt 0:00:02]} d6 {[%emt 0:00:03]} 48. Nc2 {[%emt 0:00:02]} Nc5 {[%emt 0:00:07]} 49. Qa5+ {[%emt 0:00:01]} Ra6 {[%emt 0:00:02]} 50. Nb4 {[%emt 0:00:01]} Qb6 {[%emt 0:00:13]} 51. Nxa6 {[%emt 0:00:04]} Qxa5 {[%emt 0:00:02]} 52. Nxb8 {[%emt 0:00:00]} Qc3+ {[%emt 0:00:00]} 53. Ka2 {[%emt 0:00:00]} Qxc4+ {[%emt 0:00:01]} 54. Ka3 {[%emt 0:00:01]} Qc3+ {[%emt 0:00:00]} 55. Ka2 {[%emt 0:00:00]} Qc2+ {[%emt 0:00:00]} 56. Ka3 {[%emt 0:00:05]} Qxb1 {[%emt 0:00:02]} 57. Nc6+ {[%emt 0:00:05]} Kb6 {[%emt 0:00:00]} 0-1

[Event "CCT Chessable Masters Play-In 2025"]
[Site "Online"]
[Date "2025.02.17"]
[Round "4.42"]
[White "Moroni, Luca Jr"]
[Black "Le, Quang Liem"]
[Result "0-1"]
[ECO "A25"]
[WhiteElo "2552"]
[BlackElo "2739"]
[PlyCount "56"]
[EventDate "2025.02.13"]
[EventType "swiss"]
[EventCountry "NET"]
[TimeControl "600"]
[WhiteClock "0:04:06"]
[BlackClock "0:04:48"]

1. c4 {[%emt 0:00:03]} Nf6 {[%emt 0:00:03]} 2. Nc3 {[%emt 0:00:01]} e5 {[%emt 0:00:02]} 3. e3 {[%emt 0:00:01]} Nc6 {[%emt 0:00:03]} 4. Qb3 {[%emt 0:00:04]} g6 {[%emt 0:00:09]} 5. g3 {[%emt 0:00:13]} Bg7 {[%emt 0:00:02]} 6. Bg2 {[%emt 0:00:02]} O-O {[%emt 0:00:01]} 7. d3 {[%emt 0:00:01]} d6 {[%emt 0:00:04]} 8. Nge2 {[%emt 0:00:02]} Nd7 {[%emt 0:00:04]} 9. Qd1 {[%emt 0:00:15]} a5 {[%emt 0:00:08]} 10. O-O {[%emt 0:00:03]} f5 {[%emt 0:00:09]} 11. a3 {[%emt 0:00:10]} Nf6 {[%emt 0:00:14]} 12. Rb1 {[%emt 0:00:11]} Be6 {[%emt 0:00:11]} 13. Nd5 {[%emt 0:00:07]} Bf7 {[%emt 0:00:06]} 14. Nec3 {[%emt 0:00:12]} Nxd5 {[%emt 0:00:03]} 15. Nxd5 {[%emt 0:00:01]} Re8 {[%emt 0:00:40]} 16. b4 {[%emt 0:00:16]} axb4 {[%emt 0:00:00]} 17. axb4 {[%emt 0:00:00]} e4 {[%emt 0:00:01]} 18. dxe4 {[%emt 0:00:01]} fxe4 {[%emt 0:00:00]} 19. Qc2 {[%emt 0:00:08]} Ne5 {[%emt 0:00:01]} 20. Rd1 {[%emt 0:00:23]} c6 {[%emt 0:01:12]} 21. Nc3 {[%emt 0:00:02]} Nf3+ {[%emt 0:00:01]} 22. Kh1 {[%emt 0:00:06]} Qg5 {[%emt 0:00:08]} 23. Nxe4 {[%emt 0:00:35]} Qf5 {[%emt 0:01:31]} 24. g4 {[%emt 0:00:02]} Qxg4 {[%emt 0:00:00]} 25. Nxd6 {[%emt 0:00:44]} Qh5 {[%emt 0:00:05]} 26. h3 {[%emt 0:00:08]} Be6 {[%emt 0:00:02]} 27. Nxe8 {[%emt 0:01:26]} Bxh3 {[%emt 0:00:03]} 28. Nxg7 {[%emt 0:00:37]} Qg4 {[%emt 0:00:09]} 0-1

[Event "CCT Chessable Masters Play-In 2025"]
[Site "Online"]
[Date "2025.02.17"]
[Round "4.43"]
[White "Svidler, Peter"]
[Black "Atabayev, Saparmyrat"]
[Result "1-0"]
[ECO "C42"]
[WhiteElo "2696"]
[BlackElo "2516"]
[PlyCount "121"]
[EventDate "2025.02.13"]
[EventType "swiss"]
[EventCountry "NET"]
[TimeControl "600"]
[WhiteClock "0:00:58"]
[BlackClock "0:01:16"]

1. e4 {[%emt 0:00:01]} e5 {[%emt 0:00:03]} 2. Nf3 {[%emt 0:00:01]} Nf6 {[%emt 0:00:02]} 3. Nxe5 {[%emt 0:00:10]} d6 {[%emt 0:00:00]} 4. Nf3 {[%emt 0:00:04]} Nxe4 {[%emt 0:00:01]} 5. Nc3 {[%emt 0:00:00]} Nxc3 {[%emt 0:00:01]} 6. dxc3 {[%emt 0:00:01]} Be7 {[%emt 0:00:00]} 7. Qd4 {[%emt 0:00:12]} Bf6 {[%emt 0:00:08]} 8. Qf4 {[%emt 0:00:04]} Nc6 {[%emt 0:00:06]} 9. Be3 {[%emt 0:00:03]} Be6 {[%emt 0:00:05]} 10. O-O-O {[%emt 0:00:06]} Qd7 {[%emt 0:00:02]} 11. Kb1 {[%emt 0:00:39]} h6 {[%emt 0:00:04]} 12. h3 {[%emt 0:00:08]} a6 {[%emt 0:00:10]} 13. g4 {[%emt 0:00:09]} O-O-O {[%emt 0:00:07]} 14. Bg2 {[%emt 0:00:13]} Kb8 {[%emt 0:00:01]} 15. Nd4 {[%emt 0:00:26]} Nxd4 {[%emt 0:00:06]} 16. Bxd4 {[%emt 0:00:01]} Bxd4 {[%emt 0:00:04]} 17. cxd4 {[%emt 0:00:02]} Qa4 {[%emt 0:00:14]} 18. b3 {[%emt 0:00:14]} Qb4 {[%emt 0:00:01]} 19. Kb2 {[%emt 0:00:05]} Rhe8 {[%emt 0:00:34]} 20. a3 {[%emt 0:00:07]} Qb6 {[%emt 0:00:02]} 21. Rhe1 {[%emt 0:00:02]} f6 {[%emt 0:00:06]} 22. h4 {[%emt 0:00:35]} Bd7 {[%emt 0:00:18]} 23. Re3 {[%emt 0:00:13]} Rxe3 {[%emt 0:00:01]} 24. fxe3 {[%emt 0:00:02]} Bc6 {[%emt 0:00:18]} 25. Bf1 {[%emt 0:00:06]} a5 {[%emt 0:00:14]} 26. Bd3 {[%emt 0:00:05]} Bb5 {[%emt 0:00:09]} 27. Bg6 {[%emt 0:00:08]} Be8 {[%emt 0:00:04]} 28. Bd3 {[%emt 0:00:10]} Bb5 {[%emt 0:00:02]} 29. Bf5 {[%emt 0:00:19]} a4 {[%emt 0:00:08]} 30. b4 {[%emt 0:00:02]} Qc6 {[%emt 0:00:04]} 31. g5 {[%emt 0:00:13]} hxg5 {[%emt 0:00:06]} 32. hxg5 {[%emt 0:00:02]} Rf8 {[%emt 0:00:01]} 33. Rg1 {[%emt 0:00:38]} Qd5 {[%emt 0:00:07]} 34. Be4 {[%emt 0:00:23]} Qe6 {[%emt 0:00:01]} 35. Qf3 {[%emt 0:00:18]} Re8 {[%emt 0:00:30]} 36. Bxb7 {[%emt 0:00:06]} Qxe3 {[%emt 0:00:02]} 37. Qxe3 {[%emt 0:00:01]} Rxe3 {[%emt 0:00:00]} 38. gxf6 {[%emt 0:00:09]} gxf6 {[%emt 0:00:01]} 39. Bd5 {[%emt 0:00:04]} c6 {[%emt 0:00:06]} 40. Bf7 {[%emt 0:00:09]} d5 {[%emt 0:00:07]} 41. Rg6 {[%emt 0:00:19]} Rf3 {[%emt 0:00:01]} 42. Be6 {[%emt 0:00:05]} Kc7 {[%emt 0:00:05]} 43. Rg7+ {[%emt 0:00:01]} Kd8 {[%emt 0:00:04]} 44. Rd7+ {[%emt 0:00:06]} Ke8 {[%emt 0:00:02]} 45. Rc7 {[%emt 0:00:01]} f5 {[%emt 0:00:07]} 46. Rb7 {[%emt 0:00:23]} Rf4 {[%emt 0:00:11]} 47. Bxd5 {[%emt 0:00:10]} Rxd4 {[%emt 0:00:04]} 48. c4 {[%emt 0:00:07]} Bxc4 {[%emt 0:00:59]} 49. Bxc6+ {[%emt 0:00:02]} Kd8 {[%emt 0:00:04]} 50. Kc3 {[%emt 0:00:02]} Rd6 {[%emt 0:00:23]} 51. b5 {[%emt 0:00:33]} Bd5 {[%emt 0:00:15]} 52. Bxd5 {[%emt 0:00:02]} Rxd5 {[%emt 0:00:00]} 53. Kb4 {[%emt 0:00:00]} Rd7 {[%emt 0:00:22]} 54. Rb8+ {[%emt 0:00:04]} Ke7 {[%emt 0:00:10]} 55. b6 {[%emt 0:00:17]} f4 {[%emt 0:00:04]} 56. Kb5 {[%emt 0:00:08]} Rd8 {[%emt 0:01:14]} 57. Rxd8 {[%emt 0:00:07]} Kxd8 {[%emt 0:00:01]} 58. Ka6 {[%emt 0:00:01]} f3 {[%emt 0:00:01]} 59. b7 {[%emt 0:00:01]} f2 {[%emt 0:00:19]} 60. b8=Q+ {[%emt 0:00:01]} Kd7 {[%emt 0:00:02]} 61. Qf4 {[%emt 0:00:01]} 1-0

[Event "CCT Chessable Masters Play-In 2025"]
[Site "Online"]
[Date "2025.02.17"]
[Round "4.44"]
[White "Harikrishna, Pentala"]
[Black "Murzin, Volodar"]
[Result "1/2-1/2"]
[ECO "E08"]
[WhiteElo "2695"]
[BlackElo "2657"]
[PlyCount "100"]
[EventDate "2025.02.13"]
[EventType "swiss"]
[EventCountry "NET"]
[TimeControl "600"]
[WhiteClock "0:01:47"]
[BlackClock "0:01:11"]

1. d4 {[%emt 0:01:51]} Nf6 {[%emt 0:00:03]} 2. c4 {[%emt 0:00:02]} e6 {[%emt 0:00:01]} 3. g3 {[%emt 0:00:01]} d5 {[%emt 0:00:05]} 4. Bg2 {[%emt 0:00:01]} Be7 {[%emt 0:00:06]} 5. Nf3 {[%emt 0:00:02]} O-O {[%emt 0:00:00]} 6. O-O {[%emt 0:00:00]} Nbd7 {[%emt 0:00:04]} 7. Qc2 {[%emt 0:00:02]} a5 {[%emt 0:00:09]} 8. Nbd2 {[%emt 0:00:06]} c5 {[%emt 0:00:49]} 9. cxd5 {[%emt 0:00:28]} exd5 {[%emt 0:00:07]} 10. dxc5 {[%emt 0:00:04]} Nxc5 {[%emt 0:00:00]} 11. Nb3 {[%emt 0:00:01]} Nxb3 {[%emt 0:00:06]} 12. Qxb3 {[%emt 0:00:13]} a4 {[%emt 0:00:02]} 13. Qd3 {[%emt 0:00:02]} Qb6 {[%emt 0:00:17]} 14. Rb1 {[%emt 0:00:31]} Bc5 {[%emt 0:00:48]} 15. b4 {[%emt 0:00:13]} axb3 {[%emt 0:00:07]} 16. axb3 {[%emt 0:00:09]} Ne4 {[%emt 0:00:23]} 17. e3 {[%emt 0:00:09]} Bf5 {[%emt 0:00:13]} 18. Nh4 {[%emt 0:00:08]} Be6 {[%emt 0:00:10]} 19. b4 {[%emt 0:00:03]} Be7 {[%emt 0:00:12]} 20. Bb2 {[%emt 0:00:05]} Bxh4 {[%emt 0:00:32]} 21. gxh4 {[%emt 0:00:02]} Rfc8 {[%emt 0:00:01]} 22. Bxe4 {[%emt 0:00:43]} dxe4 {[%emt 0:00:03]} 23. Qxe4 {[%emt 0:00:00]} Bh3 {[%emt 0:01:09]} 24. Rfd1 {[%emt 0:00:35]} Qg6+ {[%emt 0:01:24]} 25. Qxg6 {[%emt 0:00:02]} hxg6 {[%emt 0:00:00]} 26. Ra1 {[%emt 0:00:20]} Rxa1 {[%emt 0:00:08]} 27. Bxa1 {[%emt 0:00:05]} Rc4 {[%emt 0:00:02]} 28. Bd4 {[%emt 0:00:24]} Rxb4 {[%emt 0:00:04]} 29. f3 {[%emt 0:00:02]} b5 {[%emt 0:00:16]} 30. Kf2 {[%emt 0:00:12]} Be6 {[%emt 0:00:01]} 31. Kg3 {[%emt 0:00:12]} Ra4 {[%emt 0:00:12]} 32. Bc5 {[%emt 0:00:09]} Rc4 {[%emt 0:00:05]} 33. Rd8+ {[%emt 0:00:02]} Kh7 {[%emt 0:00:02]} 34. Bd4 {[%emt 0:00:07]} b4 {[%emt 0:00:01]} 35. Rb8 {[%emt 0:00:00]} b3 {[%emt 0:00:01]} 36. Rb5 {[%emt 0:00:02]} Rc2 {[%emt 0:00:12]} 37. h5 {[%emt 0:00:11]} gxh5 {[%emt 0:00:10]} 38. Rxh5+ {[%emt 0:00:01]} Kg6 {[%emt 0:00:01]} 39. Rb5 {[%emt 0:00:01]} Bc4 {[%emt 0:00:02]} 40. Rb6+ {[%emt 0:00:06]} f6 {[%emt 0:00:03]} 41. h4 {[%emt 0:00:02]} Rd2 {[%emt 0:00:11]} 42. Rb4 {[%emt 0:00:03]} Rc2 {[%emt 0:00:03]} 43. Rb7 {[%emt 0:00:08]} Rd2 {[%emt 0:00:06]} 44. h5+ {[%emt 0:00:19]} Kh6 {[%emt 0:00:02]} 45. Rb4 {[%emt 0:00:06]} Rc2 {[%emt 0:00:02]} 46. Rb7 {[%emt 0:00:02]} Bd5 {[%emt 0:00:01]} 47. Rb5 {[%emt 0:00:02]} Bf7 {[%emt 0:00:04]} 48. Rb7 {[%emt 0:00:01]} Bd5 {[%emt 0:00:02]} 49. Rb5 {[%emt 0:00:02]} Bc4 {[%emt 0:00:03]} 50. Rb7 {[%emt 0:00:01]} Bd5 {[%emt 0:00:04]} 1/2-1/2

[Event "CCT Chessable Masters Play-In 2025"]
[Site "Online"]
[Date "2025.02.17"]
[Round "4.45"]
[White "Blohberger, Felix"]
[Black "Alekseev, Evgeny"]
[Result "0-1"]
[ECO "E08"]
[WhiteElo "2532"]
[BlackElo "2505"]
[PlyCount "62"]
[EventDate "2025.02.13"]
[EventType "swiss"]
[EventCountry "NET"]
[TimeControl "600"]
[WhiteClock "0:01:56"]
[BlackClock "0:05:31"]

1. d4 {[%emt 0:00:01]} Nf6 {[%emt 0:00:38]} 2. Nf3 {[%emt 0:00:01]} e6 {[%emt 0:00:02]} 3. c4 {[%emt 0:00:02]} d5 {[%emt 0:00:03]} 4. g3 {[%emt 0:00:01]} Bb4+ {[%emt 0:00:02]} 5. Bd2 {[%emt 0:00:02]} Be7 {[%emt 0:00:02]} 6. Bg2 {[%emt 0:00:01]} O-O {[%emt 0:00:01]} 7. O-O {[%emt 0:00:02]} c6 {[%emt 0:00:01]} 8. Qc2 {[%emt 0:00:03]} Nbd7 {[%emt 0:00:02]} 9. Bf4 {[%emt 0:00:03]} b6 {[%emt 0:00:01]} 10. cxd5 {[%emt 0:00:26]} cxd5 {[%emt 0:00:03]} 11. Nc3 {[%emt 0:00:10]} Bb7 {[%emt 0:00:02]} 12. Rfc1 {[%emt 0:00:07]} Rc8 {[%emt 0:00:03]} 13. Qb3 {[%emt 0:00:03]} a6 {[%emt 0:00:02]} 14. Na4 {[%emt 0:00:01]} b5 {[%emt 0:00:13]} 15. Ne5 {[%emt 0:01:23]} Nxe5 {[%emt 0:00:16]} 16. Bxe5 {[%emt 0:00:14]} Nd7 {[%emt 0:00:05]} 17. Bf4 {[%emt 0:00:07]} Rc4 {[%emt 0:00:11]} 18. Nc5 {[%emt 0:01:10]} Nxc5 {[%emt 0:00:22]} 19. dxc5 {[%emt 0:00:02]} Bxc5 {[%emt 0:00:01]} 20. Be3 {[%emt 0:01:08]} Qb6 {[%emt 0:00:13]} 21. Rxc4 {[%emt 0:00:32]} dxc4 {[%emt 0:00:05]} 22. Bxc5 {[%emt 0:00:15]} Qxc5 {[%emt 0:00:03]} 23. Qd1 {[%emt 0:00:09]} Bxg2 {[%emt 0:00:06]} 24. Kxg2 {[%emt 0:00:00]} Qb6 {[%emt 0:00:43]} 25. Qc2 {[%emt 0:00:07]} Rd8 {[%emt 0:00:04]} 26. Rc1 {[%emt 0:00:10]} h6 {[%emt 0:00:12]} 27. Kg1 {[%emt 0:00:10]} Qa5 {[%emt 0:00:08]} 28. b3 {[%emt 0:00:39]} Rc8 {[%emt 0:00:29]} 29. Rd1 {[%emt 0:00:10]} c3 {[%emt 0:00:05]} 30. Rd6 {[%emt 0:00:33]} Qa3 {[%emt 0:00:05]} 31. Qd3 {[%emt 0:00:12]} Qxd6 {[%emt 0:00:06]} 0-1

[Event "CCT Chessable Masters Play-In 2025"]
[Site "Online"]
[Date "2025.02.17"]
[Round "4.46"]
[White "Zhu, Jiner"]
[Black "Pranav, V."]
[Result "0-1"]
[ECO "C41"]
[WhiteElo "2514"]
[BlackElo "2615"]
[PlyCount "68"]
[EventDate "2025.02.13"]
[EventType "swiss"]
[EventCountry "NET"]
[TimeControl "600"]
[WhiteClock "0:02:34"]
[BlackClock "0:04:54"]

1. e4 {[%emt 0:00:01]} e5 {[%emt 0:00:04]} 2. Nf3 {[%emt 0:00:01]} d6 {[%emt 0:00:00]} 3. d4 {[%emt 0:00:06]} exd4 {[%emt 0:00:02]} 4. Nxd4 {[%emt 0:00:00]} Nf6 {[%emt 0:00:01]} 5. Nc3 {[%emt 0:00:01]} Be7 {[%emt 0:00:00]} 6. Bc4 {[%emt 0:00:01]} O-O {[%emt 0:00:04]} 7. O-O {[%emt 0:00:01]} Re8 {[%emt 0:00:03]} 8. Re1 {[%emt 0:00:05]} c6 {[%emt 0:00:01]} 9. a4 {[%emt 0:00:03]} Nbd7 {[%emt 0:00:05]} 10. Ba2 {[%emt 0:00:03]} Bf8 {[%emt 0:00:12]} 11. Bf4 {[%emt 0:00:04]} Ne5 {[%emt 0:00:02]} 12. h3 {[%emt 0:00:04]} Ng6 {[%emt 0:00:42]} 13. Bh2 {[%emt 0:00:16]} a5 {[%emt 0:00:02]} 14. Qd2 {[%emt 0:00:43]} Qb6 {[%emt 0:00:18]} 15. Bb3 {[%emt 0:00:03]} Bd7 {[%emt 0:00:11]} 16. Nf3 {[%emt 0:00:20]} Be6 {[%emt 0:00:12]} 17. Bxe6 {[%emt 0:00:07]} Rxe6 {[%emt 0:00:02]} 18. Qd4 {[%emt 0:00:50]} Qb4 {[%emt 0:00:03]} 19. Rad1 {[%emt 0:00:18]} h6 {[%emt 0:00:05]} 20. Qd3 {[%emt 0:01:10]} Ree8 {[%emt 0:00:26]} 21. b3 {[%emt 0:00:17]} Rad8 {[%emt 0:00:06]} 22. Nd4 {[%emt 0:00:08]} Ne5 {[%emt 0:00:30]} 23. Qd2 {[%emt 0:00:01]} Ned7 {[%emt 0:00:39]} 24. Nf5 {[%emt 0:00:24]} Nc5 {[%emt 0:00:04]} 25. Bxd6 {[%emt 0:00:19]} Bxd6 {[%emt 0:00:08]} 26. Nxd6 {[%emt 0:00:08]} Rxd6 {[%emt 0:00:01]} 27. Qxd6 {[%emt 0:00:03]} Qxc3 {[%emt 0:00:01]} 28. e5 {[%emt 0:00:06]} Nd5 {[%emt 0:00:08]} 29. g3 {[%emt 0:00:38]} Ne6 {[%emt 0:00:16]} 30. Qd7 {[%emt 0:00:06]} Re7 {[%emt 0:00:04]} 31. Qc8+ {[%emt 0:00:06]} Kh7 {[%emt 0:00:04]} 32. Re2 {[%emt 0:00:05]} Qf3 {[%emt 0:00:10]} 33. Rde1 {[%emt 0:00:03]} Nd4 {[%emt 0:00:16]} 34. Rd2 {[%emt 0:00:45]} Qc3 {[%emt 0:00:04]} 0-1

[Event "CCT Chessable Masters Play-In 2025"]
[Site "Online"]
[Date "2025.02.17"]
[Round "4.47"]
[White "Ter-Sahakyan, Samvel"]
[Black "Gokerkan, Cem Kaan"]
[Result "1-0"]
[ECO "E06"]
[WhiteElo "2611"]
[BlackElo "2473"]
[PlyCount "127"]
[EventDate "2025.02.13"]
[EventType "swiss"]
[EventCountry "NET"]
[TimeControl "600"]
[WhiteClock "0:00:07"]

1. d4 {[%emt 0:00:01]} Nf6 {[%emt 0:00:02]} 2. c4 {[%emt 0:00:02]} e6 {[%emt 0:00:00]} 3. Nf3 {[%emt 0:00:02]} d5 {[%emt 0:00:01]} 4. g3 {[%emt 0:00:01]} Be7 {[%emt 0:00:02]} 5. Bg2 {[%emt 0:00:01]} O-O {[%emt 0:00:00]} 6. Qc2 {[%emt 0:00:05]} c5 {[%emt 0:00:01]} 7. dxc5 {[%emt 0:00:02]} Qa5+ {[%emt 0:00:03]} 8. Nc3 {[%emt 0:00:13]} dxc4 {[%emt 0:00:48]} 9. O-O {[%emt 0:00:06]} Qxc5 {[%emt 0:01:23]} 10. Bg5 {[%emt 0:00:03]} Nbd7 {[%emt 0:00:11]} 11. Rfd1 {[%emt 0:01:46]} Nb6 {[%emt 0:00:59]} 12. Be3 {[%emt 0:00:15]} Qh5 {[%emt 0:00:29]} 13. Bd4 {[%emt 0:00:54]} Rd8 {[%emt 0:01:05]} 14. Rd2 {[%emt 0:00:51]} Nfd5 {[%emt 0:01:55]} 15. Rad1 {[%emt 0:00:14]} Bd7 {[%emt 0:00:01]} 16. Ne5 {[%emt 0:00:26]} Nb4 {[%emt 0:00:33]} 17. Qe4 {[%emt 0:00:48]} Bc6 {[%emt 0:00:14]} 18. Nxc6 {[%emt 0:00:03]} Nxc6 {[%emt 0:00:06]} 19. Bxb6 {[%emt 0:00:13]} axb6 {[%emt 0:00:10]} 20. Rxd8+ {[%emt 0:00:12]} Bxd8 {[%emt 0:00:37]} 21. Qxc4 {[%emt 0:00:54]} Na5 {[%emt 0:00:00]} 22. Qa4 {[%emt 0:00:17]} Bf6 {[%emt 0:00:06]} 23. Bxb7 {[%emt 0:00:17]} Rb8 {[%emt 0:00:00]} 24. Bf3 {[%emt 0:00:04]} Qe5 {[%emt 0:00:01]} 25. Rd7 {[%emt 0:00:19]} h6 {[%emt 0:00:02]} 26. Ne4 {[%emt 0:00:13]} Qxb2 {[%emt 0:00:01]} 27. Nd6 {[%emt 0:00:14]} Rf8 {[%emt 0:00:01]} 28. Bh5 {[%emt 0:00:08]} Qb1+ {[%emt 0:00:08]} 29. Kg2 {[%emt 0:00:05]} g6 {[%emt 0:00:00]} 30. Bf3 {[%emt 0:00:07]} Be5 {[%emt 0:00:15]} 31. h4 {[%emt 0:00:06]} h5 {[%emt 0:00:05]} 32. Ne4 {[%emt 0:00:02]} Qb2 {[%emt 0:00:12]} 33. Ra7 {[%emt 0:00:08]} Qd4 {[%emt 0:00:02]} 34. Qxd4 {[%emt 0:00:06]} Bxd4 {[%emt 0:00:01]} 35. Nd6 {[%emt 0:00:02]} Bc5 {[%emt 0:00:03]} 36. Ne4 {[%emt 0:00:01]} Nc6 {[%emt 0:00:05]} 37. Nf6+ {[%emt 0:00:02]} Kg7 {[%emt 0:00:01]} 38. Nxh5+ {[%emt 0:00:00]} gxh5 {[%emt 0:00:03]} 39. Bxc6 {[%emt 0:00:01]} Rd8 {[%emt 0:00:02]} 40. Bf3 {[%emt 0:00:01]} Kg6 {[%emt 0:00:00]} 41. Rc7 {[%emt 0:00:06]} Rd2 {[%emt 0:00:00]} 42. Rc8 {[%emt 0:00:01]} Rb2 {[%emt 0:00:02]} 43. Rg8+ {[%emt 0:00:00]} Kf6 {[%emt 0:00:01]} 44. Bxh5 {[%emt 0:00:02]} Rxa2 {[%emt 0:00:00]} 45. Bf3 {[%emt 0:00:01]} b5 {[%emt 0:00:01]} 46. Rc8 {[%emt 0:00:00]} Bd6 {[%emt 0:00:02]} 47. Rc6 {[%emt 0:00:01]} Be5 {[%emt 0:00:01]} 48. Rb6 {[%emt 0:00:02]} Rb2 {[%emt 0:00:01]} 49. g4 {[%emt 0:00:01]} Bf4 {[%emt 0:00:00]} 50. g5+ {[%emt 0:00:01]} Kg6 {[%emt 0:00:01]} 51. Rb7 {[%emt 0:00:00]} Be5 {[%emt 0:00:00]} 52. Be4+ {[%emt 0:00:01]} f5 {[%emt 0:00:00]} 53. gxf6+ {[%emt 0:00:01]} Kxf6 {[%emt 0:00:01]} 54. e3 {[%emt 0:00:01]} Bd6 {[%emt 0:00:00]} 55. Kf3 {[%emt 0:00:01]} Ke5 {[%emt 0:00:00]} 56. h5 {[%emt 0:00:01]} Bc5 {[%emt 0:00:00]} 57. h6 {[%emt 0:00:03]} Rb1 {[%emt 0:00:01]} 58. Bxb1 {[%emt 0:00:01]} Bxe3 {[%emt 0:00:00]} 59. fxe3 {[%emt 0:00:01]} Kd5 {[%emt 0:00:00]} 60. Rxb5+ {[%emt 0:00:01]} Kc6 {[%emt 0:00:01]} 61. Rh5 {[%emt 0:00:00]} Kd6 {[%emt 0:00:00]} 62. h7 {[%emt 0:00:00]} Ke7 {[%emt 0:00:00]} 63. h8=Q {[%emt 0:00:01]} Kd6 64. Qe5+ {[%emt 0:00:01]} 1-0

[Event "CCT Chessable Masters Play-In 2025"]
[Site "Online"]
[Date "2025.02.17"]
[Round "4.48"]
[White "Sokolovsky, Yahli"]
[Black "Aryan Chopra"]
[Result "1/2-1/2"]
[ECO "B07"]
[WhiteElo "2552"]
[BlackElo "2620"]
[PlyCount "80"]
[EventDate "2025.02.13"]
[EventType "swiss"]
[EventCountry "NET"]
[TimeControl "600"]
[WhiteClock "0:02:03"]
[BlackClock "0:04:58"]

1. d4 {[%emt 0:02:21]} d6 {[%emt 0:01:49]} 2. e4 {[%emt 0:00:03]} Nf6 {[%emt 0:00:01]} 3. Nc3 {[%emt 0:00:09]} e5 {[%emt 0:00:01]} 4. dxe5 {[%emt 0:00:03]} dxe5 {[%emt 0:00:00]} 5. Qxd8+ {[%emt 0:00:01]} Kxd8 {[%emt 0:00:00]} 6. Bc4 {[%emt 0:00:01]} Ke8 {[%emt 0:00:01]} 7. f3 {[%emt 0:00:12]} c6 {[%emt 0:00:05]} 8. Be3 {[%emt 0:00:02]} Nbd7 {[%emt 0:00:02]} 9. a4 {[%emt 0:00:02]} a5 {[%emt 0:00:01]} 10. Nge2 {[%emt 0:00:02]} Bc5 {[%emt 0:00:01]} 11. Kf2 {[%emt 0:00:01]} Ke7 {[%emt 0:00:01]} 12. Rhd1 {[%emt 0:00:03]} Bxe3+ {[%emt 0:00:03]} 13. Kxe3 {[%emt 0:00:00]} Nb6 {[%emt 0:00:04]} 14. Bb3 {[%emt 0:00:16]} Be6 {[%emt 0:00:01]} 15. Bxe6 {[%emt 0:00:04]} Kxe6 {[%emt 0:00:00]} 16. b3 {[%emt 0:00:00]} Rad8 {[%emt 0:00:04]} 17. Rxd8 {[%emt 0:00:15]} Rxd8 {[%emt 0:00:01]} 18. Rd1 {[%emt 0:00:00]} Nbd7 {[%emt 0:00:07]} 19. Nc1 {[%emt 0:00:10]} h5 {[%emt 0:00:13]} 20. Nd3 {[%emt 0:00:02]} Ke7 {[%emt 0:00:06]} 21. Nb2 {[%emt 0:00:09]} Nb6 {[%emt 0:00:11]} 22. Rxd8 {[%emt 0:00:02]} Kxd8 {[%emt 0:00:00]} 23. Nb1 {[%emt 0:00:01]} Ne8 {[%emt 0:00:01]} 24. Nd3 {[%emt 0:00:18]} Nd7 {[%emt 0:00:01]} 25. Nd2 {[%emt 0:00:24]} Nd6 {[%emt 0:00:02]} 26. c4 {[%emt 0:00:42]} b6 {[%emt 0:00:25]} 27. c5 {[%emt 0:00:15]} bxc5 {[%emt 0:00:13]} 28. Nb2 {[%emt 0:00:01]} Nb6 {[%emt 0:00:04]} 29. Kd3 {[%emt 0:00:01]} Kc7 {[%emt 0:01:00]} 30. Ndc4 {[%emt 0:00:03]} Ndxc4 {[%emt 0:00:04]} 31. Nxc4 {[%emt 0:00:00]} Nxc4 {[%emt 0:00:01]} 32. Kxc4 {[%emt 0:00:04]} Kd6 {[%emt 0:00:03]} 33. g3 {[%emt 0:01:21]} g5 {[%emt 0:00:08]} 34. g4 {[%emt 0:00:45]} h4 {[%emt 0:00:01]} 35. h3 {[%emt 0:00:00]} f6 {[%emt 0:00:01]} 36. Kc3 {[%emt 0:00:02]} Kd7 {[%emt 0:00:02]} 37. Kd3 {[%emt 0:00:00]} Kc7 {[%emt 0:00:01]} 38. Kc3 {[%emt 0:00:01]} Kd7 {[%emt 0:00:01]} 39. Kd3 {[%emt 0:00:01]} Kc7 {[%emt 0:00:01]} 40. Kc3 {[%emt 0:00:00]} Kd7 {[%emt 0:00:01]} 1/2-1/2